lending/lending_fUSD_20260110
["ID","MTS","AMOUNT","RATE_DAILY","PERIOD"]
[401167394,1768008645473,-250.0,0.00017099,2]
[401167395,1768008645483,-1000.0,0.00017099,2]
[401167396,1768008645493,-250.0,0.00017099,2]
[401167397,1768008645503,-1000.0,0.00017099,2]
[401167398,1768008645512,-250.0,0.00017099,2]
[401167399,1768008645523,-1000.0,0.00017099,2]
[401167400,1768008645533,-250.0,0.00017099,2]
[401167401,1768008645543,-1000.0,0.00017099,2]
[401167402,1768008645553,-500.0,0.00017099,2]
[401167403,1768008645563,-250.0,0.00017099,2]
[401167404,1768008645574,-500.0,0.00017099,2]
[401167405,1768008645585,-500.0,0.00017099,2]
[401167406,1768008645595,-250.0,0.00017099,2]
[401167407,1768008645605,-2000.0,0.00017099,2]
[401167408,1768008645616,-500.0,0.00017099,2]
[401167409,1768008645625,-500.0,0.00017099,2]
[401167410,1768008645636,-2000.0,0.00017099,2]
[401167411,1768008645647,-500.0,0.00017099,2]
[401167412,1768008645658,-2000.0,0.00017099,2]
[401167413,1768008645668,-500.0,0.00017099,2]
[401167414,1768008645678,-500.0,0.00017099,2]
[401167415,1768008645689,-2000.0,0.00017099,2]
[401167416,1768008645699,-500.0,0.00017099,2]
[401167417,1768008645709,-500.0,0.00017099,2]
[401167418,1768008645721,-2000.0,0.00017099,2]
[401167419,1768008645732,-500.0,0.00017099,2]
[401167420,1768008645745,-500.0,0.00017099,2]
[401167421,1768008645755,-2000.0,0.00017099,2]
[401167422,1768008645766,-500.0,0.00017099,2]
[401167423,1768008645775,-500.0,0.00017099,2]
[401167424,1768008645785,-2000.0,0.00017099,2]
[401167425,1768008645796,-500.0,0.00017099,2]
[401167426,1768008645805,-500.0,0.00017099,2]
[401167427,1768008645814,-2000.0,0.00017099,2]
[401167428,1768008645824,-500.0,0.00017099,2]
[401167429,1768008645833,-500.0,0.00017099,2]
[401167430,1768008645843,-407.91279506,0.00017099,2]
[401167431,1768008645853,-500.0,0.00017099,2]
[401167432,1768008645863,-500.0,0.00017099,2]
[401167433,1768008645873,-500.0,0.00017099,2]
[401167434,1768008645883,-500.0,0.00017099,2]
[401167435,1768008645894,-500.0,0.00017099,2]
[401167436,1768008645904,-500.0,0.00017099,2]
[401167437,1768008645916,-553.64373807,0.00017099,2]
[401167438,1768008645926,-150.0,0.000171,2]
[401167439,1768008645936,-150.0,0.000171,2]
[401167440,1768008645948,-150.0,0.000171,2]
[401167441,1768008645959,-150.0,0.000171,2]
[401167442,1768008645970,-150.0,0.000171,2]
[401167443,1768008645981,-150.0,0.000171,2]
[401167444,1768008645991,-150.0,0.000171,2]
[401167445,1768008646003,-192.30350632,0.000171,2]
[401167446,1768008646013,-1052.04077363,0.000171,2]
[401167447,1768008646023,-151.76,0.00017103,2]
[401167448,1768008646035,-150.0,0.00017111,2]
[401167449,1768008646046,-150.0,0.00017111,2]
[401167450,1768008646058,-150.0,0.00017113,2]
[401167451,1768008646070,-150.0,0.00017113,2]
[401167452,1768008646081,-150.0,0.00017114,2]
[401167453,1768008646093,-150.0,0.00017119,2]
[401167454,1768008646104,-150.0,0.0001712,2]
[401167455,1768008646115,-645.83273924,0.00017129,2]
[401167456,1768008646126,-150.0,0.00017133,2]
[401167457,1768008646138,-150.0,0.00017134,2]
[401167458,1768008646149,-150.0,0.00017137,2]
[401167459,1768008646161,-150.0,0.00017138,2]
[401167460,1768008646172,-150.0,0.0001714,2]
[401167461,1768008646184,-150.0,0.00017141,2]
[401167462,1768008646195,-150.0,0.00017142,2]
[401167463,1768008646208,-150.0,0.00017156,2]
[401167464,1768008646219,-150.0,0.00017156,2]
[401167465,1768008646231,-150.0,0.00017157,2]
[401167466,1768008646241,-150.0,0.00017161,2]
[401167467,1768008646252,-150.0,0.00017163,2]
[401167468,1768008646263,-150.0,0.00017164,2]
[401167469,1768008646275,-150.0,0.00017167,2]
[401167470,1768008646286,-150.0,0.00017169,2]
[401167471,1768008646297,-150.0,0.00017175,2]
[401167472,1768008646307,-1000.0,0.00017176,2]
[401167473,1768008646318,-150.0,0.00017178,2]
[401167474,1768008646328,-1000.0,0.00017178,2]
[401167475,1768008646339,-1112.8,0.00017178,2]
[401167476,1768008646351,-1754.68,0.00017178,2]
[401167477,1768008646361,-150.0,0.0001718,2]
[401167478,1768008646372,-150.0,0.00017182,2]
[401167479,1768008646383,-150.0,0.00017189,2]
[401167480,1768008646394,-150.0,0.00017194,2]
[401167481,1768008646406,-150.0,0.00017194,2]
[401167482,1768008646418,-150.0,0.00017197,2]
[401167483,1768008646430,-150.0,0.000172,2]
[401167484,1768008646441,-150.0,0.00017202,2]
[401167485,1768008646451,-150.0,0.00017203,2]
[401167486,1768008646462,-150.0,0.00017212,2]
[401167487,1768008646472,-1000.0,0.00017214,2]
[401167488,1768008646483,-150.0,0.00017214,2]
[401167489,1768008646494,-150.0,0.00017221,2]
[401167490,1768008646504,-150.0,0.00017222,2]
[401167491,1768008646514,-150.0,0.00017223,2]
[401167492,1768008646526,-150.0,0.00017225,2]
[401167493,1768008646536,-150.0,0.00017225,2]
[401167494,1768008646546,-150.0,0.00017229,2]
[401167495,1768008646556,-150.0,0.00017229,2]
[401167496,1768008646566,-150.0,0.00017231,2]
[401167497,1768008646578,-150.0,0.00017239,2]
[401167498,1768008646588,-159.16121496,0.00017242,2]
[401167499,1768008646599,-150.0,0.00017243,2]
[401167500,1768008646610,-150.0,0.00017244,2]
[401167501,1768008646621,-150.0,0.00017248,2]
[401167502,1768008646631,-150.0,0.00017248,2]
[401167503,1768008646640,-150.0,0.0001725,2]
[401167504,1768008646651,-150.0,0.00017252,2]
[401167505,1768008646661,-150.0,0.00017264,2]
[401167506,1768008646671,-150.0,0.00017265,2]
[401167507,1768008646683,-150.0,0.00017267,2]
[401167508,1768008646693,-150.0,0.00017269,2]
[401167509,1768008646704,-150.0,0.00017271,2]
[401167510,1768008646716,-150.0,0.00017275,2]
[401167511,1768008646727,-150.0,0.0001728,2]
[401167512,1768008646738,-150.0,0.0001728,2]
[401167513,1768008646749,-150.0,0.0001728,2]
[401167514,1768008646759,-150.0,0.00017284,2]
[401167515,1768008646769,-150.0,0.00017288,2]
[401167516,1768008646779,-150.0,0.00017289,2]
[401167517,1768008646790,-150.0,0.0001729,2]
[401167518,1768008646800,-1775.00520595,0.00017292,2]
[401167519,1768008646810,-150.0,0.00017293,2]
[401167520,1768008646819,-150.0,0.00017294,2]
[401167521,1768008646829,-3189.89,0.00017301,2]
[401167522,1768008646840,-150.0,0.00017301,2]
[401167523,1768008646850,-150.0,0.00017305,2]
[401167524,1768008646860,-150.0,0.00017306,2]
[401167525,1768008646870,-150.0,0.00017308,2]
[401167526,1768008646880,-150.0,0.00017311,2]
[401167527,1768008646890,-150.0,0.00017315,2]
[401167528,1768008646900,-150.0,0.00017316,2]
[401167529,1768008646909,-9613.1354437,0.00017324,2]
[401167530,1768008646919,-150.0,0.00017325,2]
[401167531,1768008646929,-150.0,0.00017325,2]
[401167532,1768008646939,-150.0,0.00017325,2]
[401167533,1768008646950,-150.0,0.00017328,2]
[401167534,1768008646960,-150.0,0.00017333,2]
[401167535,1768008646971,-150.0,0.00017335,2]
[401167536,1768008646980,-150.0,0.00017339,2]
[401167537,1768008646990,-150.0,0.00017341,2]
[401167538,1768008646999,-500.0,0.00017342,2]
[401167539,1768008647009,-150.0,0.00017344,2]
[401167540,1768008647019,-150.0,0.00017345,2]
[401167541,1768008647029,-4791.62398728,0.0001735,2]
[401167542,1768008647040,-150.0,0.00017355,2]
[401167543,1768008647050,-150.0,0.00017356,2]
[401167544,1768008647059,-150.0,0.00017357,2]
[401167545,1768008647069,-150.0,0.00017357,2]
[401167546,1768008647079,-150.0,0.00017362,2]
[401167547,1768008647090,-150.0,0.00017362,2]
[401167548,1768008647100,-150.0,0.00017363,2]
[401167549,1768008647110,-150.0,0.00017366,2]
[401167550,1768008647120,-150.0,0.00017366,2]
[401167551,1768008647130,-1503.16248352,0.00017368,2]
[401167552,1768008647140,-150.0,0.00017378,2]
[401167553,1768008647150,-150.0,0.00017381,2]
[401167554,1768008647160,-150.0,0.00017382,2]
[401167555,1768008647171,-150.0,0.00017385,2]
[401167556,1768008647181,-150.0,0.00017386,2]
[401167557,1768008647192,-150.0,0.00017391,2]
[401167558,1768008647202,-150.0,0.00017392,2]
[401167559,1768008647211,-150.0,0.000174,2]
[401167560,1768008647221,-150.0,0.000174,2]
[401167561,1768008647231,-150.0,0.00017407,2]
[401167562,1768008647242,-150.0,0.00017408,2]
[401167563,1768008647252,-150.0,0.00017409,2]
[401167564,1768008647261,-150.0,0.00017417,2]
[401167565,1768008647271,-150.0,0.00017418,2]
[401167566,1768008647281,-150.0,0.00017419,2]
[401167567,1768008647290,-150.0,0.00017421,2]
[401167568,1768008647300,-150.0,0.00017422,2]
[401167569,1768008647309,-150.0,0.00017427,2]
[401167570,1768008647319,-150.0,0.0001743,2]
[401167571,1768008647329,-150.0,0.00017436,2]
[401167572,1768008647339,-150.0,0.00017437,2]
[401167573,1768008647348,-150.0,0.00017442,2]
[401167574,1768008647357,-150.0,0.00017444,2]
[401167575,1768008647367,-150.0,0.00017446,2]
[401167576,1768008647376,-150.0,0.00017448,2]
[401167577,1768008647388,-150.0,0.00017452,2]
[401167578,1768008647397,-150.75,0.00017452,2]
[401167579,1768008647406,-150.0,0.00017453,2]
[401167580,1768008647416,-150.0,0.00017456,2]
[401167581,1768008647426,-150.0,0.00017463,2]
[401167582,1768008647436,-150.0,0.00017467,2]
[401167583,1768008647445,-166.85147352,0.00017468,2]
[401167584,1768008647455,-150.0,0.00017468,2]
[401167585,1768008647464,-150.0,0.00017468,2]
[401167586,1768008647474,-150.0,0.00017474,2]
[401167587,1768008647484,-150.0,0.00017475,2]
[401167588,1768008647494,-150.0,0.00017476,2]
[401167589,1768008647504,-150.0,0.00017486,2]
[401167590,1768008647514,-150.0,0.00017486,2]
[401167591,1768008647525,-368.0,0.00017489,2]
[401167592,1768008647534,-150.0,0.00017489,2]
[401167593,1768008647544,-150.0,0.00017489,2]
[401167594,1768008647553,-150.0,0.0001749,2]
[401167595,1768008647563,-150.0,0.00017493,2]
[401167596,1768008647573,-150.0,0.00017494,2]
[401167597,1768008647583,-1775.00520595,0.00017494,2]
[401167598,1768008647592,-150.0,0.00017499,2]
[401167599,1768008647603,-5392.6172977,0.000175,2]
[401167600,1768008647613,-192.30350632,0.000175,2]
[401167601,1768008647622,-150.0,0.00017502,2]
[401167602,1768008647631,-150.0,0.00017509,2]
[401167603,1768008647641,-150.0,0.00017511,2]
[401167604,1768008647651,-150.0,0.00017513,2]
[401167605,1768008647661,-150.0,0.00017516,2]
[401167606,1768008647671,-150.0,0.00017518,2]
[401167607,1768008647680,-150.0,0.00017522,2]
[401167608,1768008647690,-1000.0,0.00017524,2]
[401167609,1768008647700,-150.0,0.00017529,2]
[401167610,1768008647709,-150.0,0.0001753,2]
[401167611,1768008647720,-150.0,0.00017531,2]
[401167612,1768008647731,-150.0,0.00017533,2]
[401167613,1768008647744,-600.0,0.00017534,2]
[401167614,1768008647753,-150.0,0.00017543,2]
[401167615,1768008647763,-150.0,0.00017544,2]
[401167616,1768008647772,-150.0,0.00017544,2]
[401167617,1768008647783,-150.0,0.0001755,2]
[401167618,1768008647793,-150.0,0.0001755,2]
[401167619,1768008647803,-150.0,0.0001755,2]
[401167620,1768008647814,-150.0,0.0001755,2]
[401167621,1768008647824,-168.0,0.00017552,2]
[401167622,1768008647833,-150.0,0.00017556,2]
[401167623,1768008647919,-150.0,0.00017557,2]
[401167624,1768008647929,-150.0,0.00017567,2]
[401167625,1768008647939,-150.0,0.00017569,2]
[401167626,1768008647949,-150.0,0.00017569,2]
[401167627,1768008647959,-150.0,0.0001757,2]
[401167628,1768008647969,-150.0,0.0001757,2]
[401167629,1768008647978,-150.0,0.00017578,2]
[401167630,1768008647987,-150.0,0.00017585,2]
[401167631,1768008647997,-150.0,0.00017587,2]
[401167632,1768008648006,-150.0,0.0001759,2]
[401167633,1768008648017,-150.0,0.00017591,2]
[401167634,1768008648026,-368.0,0.00017593,2]
[401167635,1768008648036,-150.0,0.00017594,2]
[401167636,1768008648045,-150.0,0.00017597,2]
[401167637,1768008648054,-150.0,0.000176,2]
[401167638,1768008648063,-1000.0,0.000176,2]
[401167639,1768008648072,-150.0,0.00017606,2]
[401167640,1768008648082,-150.0,0.00017611,2]
[401167641,1768008648093,-150.0,0.00017612,2]
[401167642,1768008648102,-150.0,0.00017613,2]
[401167643,1768008648111,-150.0,0.00017614,2]
[401167644,1768008648121,-150.0,0.00017614,2]
[401167645,1768008648131,-150.0,0.0001762,2]
[401167646,1768008648140,-150.0,0.00017622,2]
[401167647,1768008648149,-150.0,0.00017624,2]
[401167648,1768008648159,-150.0,0.00017625,2]
[401167649,1768008648168,-4791.62398728,0.00017625,2]
[401167650,1768008648179,-150.0,0.00017632,2]
[401167651,1768008648188,-150.0,0.00017635,2]
[401167652,1768008648198,-150.0,0.0001764,2]
[401167653,1768008648207,-150.0,0.0001764,2]
[401167654,1768008648217,-150.0,0.0001764,2]
[401167655,1768008648227,-9190.30676368,0.0001764,2]
[401167656,1768008648237,-150.0,0.00017644,2]
[401167657,1768008648246,-150.0,0.00017644,2]
[401167658,1768008648256,-150.0,0.00017645,2]
[401167659,1768008648265,-574.12855637,0.00017647,2]
[401167660,1768008648275,-150.0,0.00017651,2]
[401167661,1768008648285,-150.0,0.00017652,2]
[401167662,1768008648294,-150.0,0.00017658,2]
[401167663,1768008648304,-150.0,0.00017662,2]
[401167664,1768008648313,-150.0,0.00017667,2]
[401167665,1768008648323,-150.0,0.00017668,2]
[401167666,1768008648332,-150.0,0.0001767,2]
[401167667,1768008648342,-150.0,0.00017673,2]
[401167668,1768008648351,-150.0,0.00017678,2]
[401167669,1768008648360,-150.0,0.00017679,2]
[401167670,1768008648370,-150.0,0.00017681,2]
[401167671,1768008648379,-150.0,0.00017681,2]
[401167672,1768008648389,-150.0,0.00017689,2]
[401167673,1768008648400,-150.0,0.00017693,2]
[401167674,1768008648409,-150.0,0.00017695,2]
[401167675,1768008648419,-150.0,0.00017696,2]
[401167676,1768008648428,-1775.00520595,0.00017697,2]
[401167677,1768008648438,-150.0,0.000177,2]
[401167678,1768008648447,-150.0,0.00017704,2]
[401167679,1768008648456,-150.0,0.00017704,2]
[401167680,1768008648465,-150.0,0.00017711,2]
[401167681,1768008648475,-150.0,0.00017714,2]
[401167682,1768008648485,-150.0,0.00017719,2]
[401167683,1768008648493,-150.0,0.00017721,2]
[401167684,1768008648503,-150.0,0.00017723,2]
[401167685,1768008648512,-150.0,0.00017727,2]
[401167686,1768008648521,-6709.59935273,0.0001773,2]
[401167687,1768008648531,-150.0,0.00017731,2]
[401167688,1768008648540,-150.0,0.00017733,2]
[401167689,1768008648550,-150.0,0.00017734,2]
[401167690,1768008648560,-334.56953718,0.00017737,2]
[401167691,1768008648569,-150.0,0.00017738,2]
[401167692,1768008648578,-150.0,0.00017743,2]
[401167693,1768008648588,-150.0,0.00017743,2]
[401167694,1768008648597,-882.32936576,0.00017745,2]
[401167695,1768008648607,-150.0,0.00017746,2]
[401167696,1768008648616,-150.0,0.00017749,2]
[401167697,1768008648626,-150.0,0.00017751,2]
[401167698,1768008648635,-150.0,0.00017755,2]
[401167699,1768008648645,-150.0,0.00017756,2]
[401167700,1768008648654,-150.0,0.00017756,2]
[401167701,1768008648663,-150.0,0.00017758,2]
[401167702,1768008648672,-150.0,0.00017772,2]
[401167703,1768008648682,-150.0,0.00017772,2]
[401167704,1768008648692,-150.0,0.00017775,2]
[401167705,1768008648702,-150.0,0.00017775,2]
[401167706,1768008648711,-150.0,0.00017775,2]
[401167707,1768008648720,-150.0,0.00017778,2]
[401167708,1768008648729,-150.0,0.00017778,2]
[401167709,1768008648739,-368.0,0.00017784,2]
[401167710,1768008648748,-150.0,0.00017785,2]
[401167711,1768008648758,-150.0,0.00017794,2]
[401167712,1768008648769,-150.0,0.00017795,2]
[401167713,1768008648778,-150.0,0.00017795,2]
[401167714,1768008648787,-150.0,0.00017797,2]
[401167715,1768008648797,-2000.0,0.000178,2]
[401167716,1768008648807,-50012.26250772,0.000178,2]
[401167717,1768008648816,-1000.0,0.000178,2]
[401167718,1768008648826,-150.0,0.000178,2]
[401167719,1768008648835,-12099.97294963,0.000178,2]
[401167720,1768008648845,-150.0,0.00017806,2]
[401167721,1768008648855,-150.0,0.00017807,2]
[401167722,1768008648864,-200.35779431,0.00017808,2]
[401167723,1768008648874,-150.0,0.00017812,2]
[401167724,1768008648884,-1000.0,0.00017812,2]
[401167725,1768008648893,-150.0,0.00017812,2]
[401167726,1768008648904,-150.0,0.00017816,2]
[401167727,1768008648914,-150.0,0.00017818,2]
[401167728,1768008648923,-2407.95344,0.0001782,2]
[401167729,1768008648933,-2407.95344,0.0001782,2]
[401167730,1768008648942,-159.35537069,0.0001782,2]
[401167731,1768008648952,-150.0,0.00017822,2]
[401167732,1768008648961,-150.0,0.00017823,2]
[401167733,1768008648971,-151.0,0.00017829,2]
[401167734,1768008648982,-24630.9370782,0.0001783,2]
[401167735,1768008648991,-2407.95344,0.0001783,2]
[401167736,1768008649001,-150.0,0.00017831,2]
[401167737,1768008649010,-150.0,0.00017834,2]
[401167738,1768008649021,-150.0,0.00017836,2]
[401167739,1768008649031,-150.0,0.00017839,2]
[401167740,1768008649041,-150.0,0.00017841,2]
[401167741,1768008649051,-150.0,0.00017844,2]
[401167742,1768008649061,-150.0,0.00017848,2]
[401167743,1768008649070,-150.0,0.0001785,2]
[401167744,1768008649081,-200.0,0.00017855,2]
[401167745,1768008649091,-2000.0,0.00017856,2]
[401167746,1768008649101,-200.0,0.00017856,2]
[401167747,1768008649110,-200.0,0.00017856,2]
[401167748,1768008649120,-150.0,0.00017857,2]
[401167749,1768008649131,-2407.95344,0.0001786,2]
[401167750,1768008649140,-150.0,0.00017862,2]
[401167751,1768008649150,-150.0,0.00017863,2]
[401167752,1768008649160,-150.0,0.00017866,2]
[401167753,1768008649170,-150.0,0.00017867,2]
[401167754,1768008649179,-150.0,0.00017869,2]
[401167755,1768008649189,-1483.73401033,0.00017871,2]
[401167756,1768008649198,-2413.60147525,0.00017871,2]
[401167757,1768008649208,-3408.72563384,0.00017871,2]
[401167758,1768008649218,-4410.8163,0.00017871,2]
[401167759,1768008649229,-150.0,0.00017871,2]
[401167760,1768008649238,-150.0,0.00017871,2]
[401167761,1768008649248,-150.0,0.00017873,2]
[401167762,1768008649259,-150.0,0.00017877,2]
[401167763,1768008649268,-1000.0,0.00017878,2]
[401167764,1768008649278,-2407.95344,0.0001788,2]
[401167765,1768008649288,-150.0,0.00017886,2]
[401167766,1768008649299,-150.0,0.00017887,2]
[401167767,1768008649309,-150.0,0.00017889,2]
[401167768,1768008649320,-150.0,0.00017889,2]
[401167769,1768008649330,-330.7,0.00017891,2]
[401167770,1768008649340,-25000.0,0.00017891,3]
[401167771,1768008649351,-150.0,0.00017893,2]
[401167772,1768008649363,-150.0,0.00017898,2]
[401167773,1768008649373,-150.0,0.00017899,2]
[401167774,1768008649384,-25000.0,0.000179,3]
[401167775,1768008649405,-192.30350632,0.000179,2]
[401167776,1768008649415,-10000.0,0.000179,2]
[401167777,1768008649425,-6021.86823211,0.000179,3]
[401167778,1768008649434,-4791.62398728,0.000179,2]
[401167779,1768008649443,-1000.0,0.000179,2]
[401167780,1768008649453,-666.08677066,0.000179,2]
[401167781,1768008649462,-1366.72655499,0.000179,2]
[401167782,1768008649472,-1366.72655499,0.000179,2]
[401167783,1768008649482,-1366.72655499,0.000179,2]
[401167784,1768008649491,-565.17771938,0.000179,2]
[401167785,1768008649501,-5419.66632669,0.000179,2]
[401167786,1768008649510,-5055.06085975,0.000179,2]
[401167787,1768008649519,-1775.00520595,0.000179,2]
[401167788,1768008649529,-7352.0,0.000179,2]
[401167789,1768008649538,-150.0,0.00017906,2]
[401167790,1768008649549,-150.0,0.00017909,2]
[401167791,1768008649559,-2407.95345,0.0001791,2]
[401167792,1768008649569,-150.0,0.00017911,2]
[401167793,1768008649578,-151.0,0.00017915,2]
[401167794,1768008649588,-150.0,0.00017917,2]
[401167795,1768008649598,-150.0,0.00017918,2]
[401167796,1768008649607,-150.0,0.00017919,2]
[401167797,1768008649617,-150.0,0.00017924,2]
[401167798,1768008649625,-150.0,0.00017925,2]
[401167799,1768008649635,-1000.0,0.00017927,2]
[401167800,1768008649645,-152.0,0.00017928,3]
[401167801,1768008649654,-150.0,0.00017932,2]
[401167802,1768008649664,-150.0,0.00017933,2]
[401167803,1768008649673,-150.0,0.00017936,2]
[401167804,1768008649682,-200.0,0.00017937,2]
[401167805,1768008649692,-150.0,0.00017939,2]
[401167806,1768008649702,-1203.2555612,0.0001794,2]
[401167807,1768008649712,-150.0,0.00017944,2]
[401167808,1768008649721,-150.0,0.00017945,2]
[401167809,1768008649732,-178.16727866,0.00017946,2]
[401167810,1768008649745,-150.0,0.00017946,2]
[401167811,1768008649755,-150.0,0.00017949,2]
[401167812,1768008649765,-150.0,0.00017954,2]
[401167813,1768008649775,-150.0,0.00017956,2]
[401167814,1768008649787,-150.0,0.00017959,2]
[401167815,1768008649797,-1000.0,0.00017961,2]
[401167816,1768008649806,-150.0,0.00017963,2]
[401167817,1768008649816,-150.0,0.00017972,2]
[401167818,1768008649826,-500.0,0.00017973,2]
[401167819,1768008649836,-500.0,0.00017973,2]
[401167820,1768008649845,-500.0,0.00017973,2]
[401167821,1768008649855,-500.0,0.00017973,2]
[401167822,1768008649864,-500.0,0.00017973,2]
[401167823,1768008649874,-500.0,0.00017973,2]
[401167824,1768008649883,-500.0,0.00017973,2]
[401167825,1768008649893,-500.0,0.00017973,2]
[401167826,1768008649903,-500.0,0.00017973,2]
[401167827,1768008649912,-190.88377587,0.00017973,2]
[401167828,1768008649921,-500.94146496,0.00017973,2]
[401167829,1768008649931,-500.0,0.00017973,2]
[401167830,1768008649940,-500.0,0.00017973,2]
[401167831,1768008649949,-500.0,0.00017973,2]
[401167832,1768008649958,-433.25363423,0.00017973,2]
[401167833,1768008649967,-150.18655509,0.00017973,2]
[401167834,1768008649977,-500.0,0.00017973,2]
[401167835,1768008649987,-260.76514571,0.00017973,2]
[401167836,1768008649997,-300.14354491,0.00017973,2]
[401167837,1768008650006,-609.94892981,0.00017973,2]
[401167838,1768008650017,-500.0,0.00017973,2]
[401167839,1768008650026,-500.0,0.00017973,2]
[401167840,1768008650035,-500.0,0.00017973,2]
[401167841,1768008650044,-500.0,0.00017973,2]
[401167842,1768008650054,-500.0,0.00017973,2]
[401167843,1768008650063,-500.0,0.00017973,2]
[401167844,1768008650072,-500.0,0.00017973,2]
[401167845,1768008650082,-500.0,0.00017973,2]
[401167846,1768008650091,-500.0,0.00017973,2]
[401167847,1768008650100,-500.0,0.00017973,2]
[401167848,1768008650110,-500.0,0.00017973,2]
[401167849,1768008650119,-500.0,0.00017973,2]
[401167850,1768008650129,-500.0,0.00017973,2]
[401167851,1768008650138,-500.0,0.00017973,2]
[401167852,1768008650148,-587.72916305,0.00017973,2]
[401167853,1768008650157,-500.0,0.00017973,2]
[401167854,1768008650167,-500.0,0.00017973,2]
[401167855,1768008650176,-500.0,0.00017973,2]
[401167856,1768008650185,-500.0,0.00017973,2]
[401167857,1768008650195,-500.0,0.00017973,2]
[401167858,1768008650204,-500.0,0.00017973,2]
[401167859,1768008650213,-571.47009533,0.00017973,2]
[401167860,1768008650222,-500.0,0.00017973,2]
[401167861,1768008650231,-500.0,0.00017973,2]
[401167862,1768008650241,-500.0,0.00017973,2]
[401167863,1768008650250,-500.0,0.00017973,2]
[401167864,1768008650259,-150.0,0.00017973,2]
[401167865,1768008650268,-150.0,0.00017973,2]
[401167866,1768008650278,-150.0,0.00017975,2]
[401167867,1768008650287,-150.0,0.00017977,2]
[401167868,1768008650297,-150.0,0.00017978,2]
[401167869,1768008650306,-150.0,0.0001798,2]
[401167870,1768008650315,-150.0,0.00017981,2]
[401167871,1768008650325,-225.0,0.00017984,2]
[401167872,1768008650334,-283.31219056,0.0001799,2]
[401167873,1768008650343,-283.31219056,0.0001799,2]
[401167874,1768008650352,-161.8167014,0.00017999,2]
[401167875,1768008650361,-7300.2108252,0.00017999,2]
[401167876,1768008650371,-4728.5836516,0.00017999,2]
[401167877,1768008650381,-4578.2676842,0.00017999,2]
[401167878,1768008650391,-137961.1180952,0.00017999,2]
[401167879,1768008650401,-500.0,0.00017999,2]
[401167880,1768008650411,-513.31358643,0.00017999,2]
[401167881,1768008650421,-6353.1247455,0.00017999,2]
[401167882,1768008650431,-300.0,0.00017999,2]
[401167883,1768008650440,-151.0,0.00017999,2]
[401167884,1768008650449,-151.0,0.00017999,2]
[401167885,1768008650459,-151.0,0.00017999,2]
[401167886,1768008650468,-151.0,0.00017999,2]
[401167887,1768008650477,-151.0,0.00017999,2]
[401167888,1768008650486,-151.0,0.00017999,2]
[401167889,1768008650496,-151.0,0.00017999,2]
[401167890,1768008650505,-300.0,0.00017999,2]
[401167891,1768008650515,-395.664357,0.00017999,2]
[401167892,1768008650525,-395.664357,0.00017999,2]
[401167893,1768008650534,-395.664357,0.00017999,2]